[Event "December 5 Early 2023"]
[Site "https://www.chess.com"]
[Date "2023.12.05"]
[Round "3"]
[White "Yuan, Qingyu"]
[Black "Andreikin, Dmitry"]
[Result "1/2-1/2"]
[Board "4"]
[TimeControl "180+1"]
[WhiteFideId "8609772"]
[BlackFideId "4158814"]
[WhiteElo "2784"]
[BlackElo "3093"]
[WhiteTeam "CHN"]
[BlackTeam "FID"]
[WhiteClock "0:00:09"]
[BlackClock "0:00:05"]

1. e4 {[%clk 0:03:00]}  c5 {[%clk 0:02:59]} 2. Nf3 {[%clk 0:03:01]}  e6 {[%clk 0:02:59]} 3. c3 {[%clk 0:03:01]}  Nf6 {[%clk 0:02:58]} 4. e5 {[%clk 0:03:01]}  Nd5 {[%clk 0:02:59]} 5. g3 {[%clk 0:03:02]}  Nc6 {[%clk 0:02:55]} 6. Bg2 {[%clk 0:03:01]}  Be7 {[%clk 0:02:48]} 7. O-O {[%clk 0:03:01]}  O-O {[%clk 0:02:48]} 8. Na3 {[%clk 0:02:49]}  b6 {[%clk 0:02:46]} 9. d3 {[%clk 0:02:45]}  Bb7 {[%clk 0:02:41]} 10. Re1 {[%clk 0:02:41]}  d6 {[%clk 0:02:41]} 11. exd6 {[%clk 0:02:39]}  Qxd6 {[%clk 0:02:41]} 12. Nc4 {[%clk 0:02:39]}  Qc7 {[%clk 0:02:41]} 13. Qe2 {[%clk 0:02:23]}  Rad8 {[%clk 0:02:40]} 14. a4 {[%clk 0:02:23]}  Bf6 {[%clk 0:02:36]} 15. h4 {[%clk 0:02:15]}  h6 {[%clk 0:02:34]} 16. Bd2 {[%clk 0:02:14]}  Rd7 {[%clk 0:02:33]} 17. Rad1 {[%clk 0:02:13]}  Rfd8 {[%clk 0:02:33]} 18. Bc1 {[%clk 0:02:13]}  Ba6 {[%clk 0:02:31]} 19. Qc2 {[%clk 0:02:06]}  Ndb4 {[%clk 0:02:15]} 20. cxb4 {[%clk 0:01:59]}  Nxb4 {[%clk 0:02:16]} 21. Qb1 {[%clk 0:01:55]}  Bxc4 {[%clk 0:02:13]} 22. Bf4 {[%clk 0:01:44]}  e5 {[%clk 0:01:49]} 23. Nxe5 {[%clk 0:01:44]}  Ba2 {[%clk 0:01:31]} 24. Nxd7 {[%clk 0:01:43]}  Qxd7 {[%clk 0:01:31]} 25. Qc1 {[%clk 0:01:27]}  Bb3 {[%clk 0:01:31]} 26. Rd2 {[%clk 0:01:22]}  Nxd3 {[%clk 0:01:29]} 27. Qb1 {[%clk 0:01:18]}  c4 {[%clk 0:01:29]} 28. Bf1 {[%clk 0:01:11]}  Qxa4 {[%clk 0:01:05]} 29. Bxd3 {[%clk 0:01:05]}  cxd3 {[%clk 0:01:03]} 30. Rxd3 {[%clk 0:01:05]}  Rxd3 {[%clk 0:01:02]} 31. Qxd3 {[%clk 0:01:06]}  Be6 {[%clk 0:01:02]} 32. Qd2 {[%clk 0:00:50]}  Qc6 {[%clk 0:00:57]} 33. Kh2 {[%clk 0:00:48]}  Qf3 {[%clk 0:00:52]} 34. Re3 {[%clk 0:00:41]}  Qg4 {[%clk 0:00:52]} 35. Be5 {[%clk 0:00:38]}  Be7 {[%clk 0:00:49]} 36. Qd4 {[%clk 0:00:34]}  Qh3+ {[%clk 0:00:44]} 37. Kg1 {[%clk 0:00:34]}  Bc5 {[%clk 0:00:44]} 38. Qd8+ {[%clk 0:00:32]}  Kh7 {[%clk 0:00:45]} 39. Rf3 {[%clk 0:00:25]}  Bf5 {[%clk 0:00:30]} 40. Qd5 {[%clk 0:00:22]}  Bg6 {[%clk 0:00:28]} 41. Rxf7 {[%clk 0:00:14]}  Bxf7 {[%clk 0:00:22]} 42. Qxf7 {[%clk 0:00:15]}  Qg4 {[%clk 0:00:23]} 43. Kh2 {[%clk 0:00:09]}  Qg6 {[%clk 0:00:21]} 44. Qxa7 {[%clk 0:00:06]}  Bxf2 {[%clk 0:00:19]} 45. Qb7 {[%clk 0:00:06]}  Bc5 {[%clk 0:00:18]} 46. Qg2 {[%clk 0:00:06]}  Qf5 {[%clk 0:00:17]} 47. Bc3 {[%clk 0:00:06]}  h5 {[%clk 0:00:18]} 48. Qe2 {[%clk 0:00:06]}  Bd6 {[%clk 0:00:16]} 49. Kg2 {[%clk 0:00:06]}  Qg4 {[%clk 0:00:15]} 50. Qxg4 {[%clk 0:00:03]}  hxg4 {[%clk 0:00:16]} 51. Bd4 {[%clk 0:00:03]}  b5 {[%clk 0:00:16]} 52. Kf2 {[%clk 0:00:03]}  g6 {[%clk 0:00:15]} 53. Kg2 {[%clk 0:00:03]}  Kg8 {[%clk 0:00:15]} 54. Bf2 {[%clk 0:00:03]}  Kf7 {[%clk 0:00:15]} 55. Kf1 {[%clk 0:00:04]}  Ke6 {[%clk 0:00:16]} 56. Ke2 {[%clk 0:00:05]}  Be5 {[%clk 0:00:16]} 57. b3 {[%clk 0:00:05]}  Kd5 {[%clk 0:00:17]} 58. Kd3 {[%clk 0:00:05]}  Bc7 {[%clk 0:00:17]} 59. Be1 {[%clk 0:00:06]}  Bb6 {[%clk 0:00:17]} 60. Bd2 {[%clk 0:00:06]}  Bf2 {[%clk 0:00:17]} 61. Bf4 {[%clk 0:00:06]}  Bc5 {[%clk 0:00:18]} 62. Bc7 {[%clk 0:00:07]}  Bd4 {[%clk 0:00:18]} 63. Bf4 {[%clk 0:00:07]}  Bc5 {[%clk 0:00:19]} 64. Bc7 {[%clk 0:00:07]}  Ba7 {[%clk 0:00:18]} 65. Bf4 {[%clk 0:00:07]}  Bf2 {[%clk 0:00:17]} 66. Bb8 {[%clk 0:00:07]}  Be1 {[%clk 0:00:17]} 67. Bf4 {[%clk 0:00:07]}  Kc5 {[%clk 0:00:18]} 68. Be5 {[%clk 0:00:07]}  Kb4 {[%clk 0:00:17]} 69. Kc2 {[%clk 0:00:08]}  Kc5 {[%clk 0:00:14]} 70. Kd3 {[%clk 0:00:08]}  Kb4 {[%clk 0:00:14]} 71. Kc2 {[%clk 0:00:08]}  Bf2 {[%clk 0:00:09]} 72. Bf4 {[%clk 0:00:08]}  Kc5 {[%clk 0:00:09]} 73. Kd3 {[%clk 0:00:08]}  Kd5 {[%clk 0:00:08]} 74. Bb8 {[%clk 0:00:08]}  Bd4 {[%clk 0:00:07]} 75. Bf4 {[%clk 0:00:08]}  Bf6 {[%clk 0:00:06]} 76. Bb8 {[%clk 0:00:07]}  Kc5 {[%clk 0:00:04]} 77. Bf4 {[%clk 0:00:06]}  Kb4 {[%clk 0:00:04]} 78. Kc2 {[%clk 0:00:07]}  Ka3 {[%clk 0:00:04]} 79. Bd6+ {[%clk 0:00:07]}  Ka2 {[%clk 0:00:04]} 80. Bf4 {[%clk 0:00:07]}  Bd4 {[%clk 0:00:05]} 81. Bd6 {[%clk 0:00:07]}  Bf6 {[%clk 0:00:04]} 82. Bc7 {[%clk 0:00:08]}  Bd4 {[%clk 0:00:04]} 83. Bf4 {[%clk 0:00:08]}  Bf6 {[%clk 0:00:04]} 84. Bd6 {[%clk 0:00:08]}  Bg7 {[%clk 0:00:04]} 85. Bc7 {[%clk 0:00:09]}  Bf6 {[%clk 0:00:03]} 86. Bb8 {[%clk 0:00:09]}  Bd4 {[%clk 0:00:03]} 87. Bd6 {[%clk 0:00:09]}  Bg7 {[%clk 0:00:04]} 88. Bf4 {[%clk 0:00:09]}  Bf6 {[%clk 0:00:04]} 89. Bd6 {[%clk 0:00:09]}  Bg7 {[%clk 0:00:05]} 1/2-1/2

[Event "December 5 Early 2023"]
[Site "https://www.chess.com"]
[Date "2023.12.05"]
[Round "3"]
[White "Caruana, Fabiano"]
[Black "Albornoz Cabrera, Carlos Daniel"]
[Result "1-0"]
[Board "6"]
[TimeControl "180+1"]
[WhiteFideId "2020009"]
[BlackFideId "3518736"]
[WhiteElo "3075"]
[BlackElo "2774"]
[WhiteTeam "USA"]
[BlackTeam "CUB"]
[WhiteClock "0:00:15"]
[BlackClock "0:00:11"]

1. c3 {[%clk 0:02:55]}  Nf6 {[%clk 0:02:57]} 2. d4 {[%clk 0:02:55]}  g6 {[%clk 0:02:56]} 3. Bf4 {[%clk 0:02:55]}  Bg7 {[%clk 0:02:57]} 4. e3 {[%clk 0:02:55]}  O-O {[%clk 0:02:57]} 5. Nd2 {[%clk 0:02:55]}  d6 {[%clk 0:02:57]} 6. h3 {[%clk 0:02:55]}  b6 {[%clk 0:02:57]} 7. Be2 {[%clk 0:02:54]}  Bb7 {[%clk 0:02:57]} 8. Bf3 {[%clk 0:02:55]}  Qc8 {[%clk 0:02:57]} 9. Ne2 {[%clk 0:02:54]}  Nbd7 {[%clk 0:02:57]} 10. Bh2 {[%clk 0:02:51]}  e5 {[%clk 0:02:56]} 11. Bxb7 {[%clk 0:02:50]}  Qxb7 {[%clk 0:02:56]} 12. O-O {[%clk 0:02:51]}  Rfe8 {[%clk 0:02:55]} 13. a4 {[%clk 0:02:51]}  a5 {[%clk 0:02:55]} 14. Qb3 {[%clk 0:02:45]}  Qd5 {[%clk 0:02:49]} 15. Qb5 {[%clk 0:02:40]}  Qb7 {[%clk 0:02:07]} 16. Rfd1 {[%clk 0:02:33]}  Re7 {[%clk 0:02:04]} 17. Nc4 {[%clk 0:02:17]}  Ne4 {[%clk 0:01:47]} 18. Ng3 {[%clk 0:02:16]}  Nxg3 {[%clk 0:01:45]} 19. Bxg3 {[%clk 0:02:17]}  h6 {[%clk 0:01:33]} 20. Bh4 {[%clk 0:02:01]}  g5 {[%clk 0:01:33]} 21. Bg3 {[%clk 0:02:02]}  f5 {[%clk 0:01:30]} 22. dxe5 {[%clk 0:02:02]}  Nxe5 {[%clk 0:01:30]} 23. Bxe5 {[%clk 0:01:59]}  Bxe5 {[%clk 0:01:30]} 24. Rd3 {[%clk 0:01:33]}  Qe4 {[%clk 0:01:23]} 25. Rad1 {[%clk 0:01:29]}  Rf8 {[%clk 0:01:22]} 26. Nxe5 {[%clk 0:01:09]}  Qxe5 {[%clk 0:01:19]} 27. Rd5 {[%clk 0:01:07]}  Qe6 {[%clk 0:01:17]} 28. b4 {[%clk 0:01:04]}  axb4 {[%clk 0:01:12]} 29. cxb4 {[%clk 0:01:05]}  f4 {[%clk 0:01:12]} 30. exf4 {[%clk 0:01:05]}  Rxf4 {[%clk 0:01:00]} 31. Rxg5+ {[%clk 0:00:55]}  hxg5 {[%clk 0:01:01]} 32. Qxg5+ {[%clk 0:00:55]}  Rg7 {[%clk 0:01:02]} 33. Qxf4 {[%clk 0:00:56]}  Qxh3 {[%clk 0:01:03]} 34. Qe4 {[%clk 0:00:52]}  Qh5 {[%clk 0:00:49]} 35. Re1 {[%clk 0:00:49]}  Qg4 {[%clk 0:00:31]} 36. Qd5+ {[%clk 0:00:37]}  Kh7 {[%clk 0:00:29]} 37. Re3 {[%clk 0:00:29]}  Rg5 {[%clk 0:00:25]} 38. Qf7+ {[%clk 0:00:23]}  Rg7 {[%clk 0:00:24]} 39. Rh3+ {[%clk 0:00:18]}  Qxh3 {[%clk 0:00:24]} 40. Qxg7+ {[%clk 0:00:19]}  Kxg7 {[%clk 0:00:24]} 41. gxh3 {[%clk 0:00:20]}  c5 {[%clk 0:00:24]} 42. bxc5 {[%clk 0:00:20]}  dxc5 {[%clk 0:00:24]} 43. Kf1 {[%clk 0:00:21]}  Kf6 {[%clk 0:00:24]} 44. Ke2 {[%clk 0:00:21]}  Kf5 {[%clk 0:00:22]} 45. Kd3 {[%clk 0:00:15]}  Kg5 {[%clk 0:00:20]} 46. Kc4 {[%clk 0:00:15]}  Kh4 {[%clk 0:00:20]} 47. f4 {[%clk 0:00:15]}  Kh5 {[%clk 0:00:20]} 48. a5 {[%clk 0:00:14]}  bxa5 {[%clk 0:00:20]} 49. Kxc5 {[%clk 0:00:15]}  Kg6 {[%clk 0:00:18]} 50. h4 {[%clk 0:00:15]}  a4 {[%clk 0:00:18]} 51. Kb4 {[%clk 0:00:15]}  Kf5 {[%clk 0:00:18]} 52. h5 {[%clk 0:00:15]}  Kf6 {[%clk 0:00:11]} 53. Kxa4 {[%clk 0:00:15]} 1-0

[Event "December 5 Early 2023"]
[Site "https://www.chess.com"]
[Date "2023.12.05"]
[Round "3"]
[White "Korchmar, Vasiliy"]
[Black "Pranav, V"]
[Result "0-1"]
[Board "7"]
[TimeControl "180+1"]
[WhiteFideId "24131750"]
[BlackFideId "25060783"]
[WhiteElo "2768"]
[BlackElo "3075"]
[WhiteTeam "RUS"]
[BlackTeam "IND"]
[WhiteClock "0:00:00"]
[BlackClock "0:00:03"]

1. e4 {[%clk 0:03:00]}  e5 {[%clk 0:02:59]} 2. Nf3 {[%clk 0:03:00]}  Nc6 {[%clk 0:03:00]} 3. Nc3 {[%clk 0:03:01]}  Nf6 {[%clk 0:03:00]} 4. Bb5 {[%clk 0:03:02]}  Bb4 {[%clk 0:02:58]} 5. O-O {[%clk 0:03:01]}  O-O {[%clk 0:02:58]} 6. d3 {[%clk 0:03:01]}  Bxc3 {[%clk 0:02:58]} 7. bxc3 {[%clk 0:03:00]}  d6 {[%clk 0:02:58]} 8. Re1 {[%clk 0:02:56]}  h6 {[%clk 0:02:57]} 9. h3 {[%clk 0:02:54]}  Ne7 {[%clk 0:02:57]} 10. d4 {[%clk 0:02:53]}  c6 {[%clk 0:02:43]} 11. Bf1 {[%clk 0:02:53]}  Qc7 {[%clk 0:02:40]} 12. g3 {[%clk 0:02:52]}  Ng6 {[%clk 0:02:40]} 13. Bg2 {[%clk 0:02:52]}  Re8 {[%clk 0:02:38]} 14. Nh2 {[%clk 0:02:39]}  Bd7 {[%clk 0:02:05]} 15. f4 {[%clk 0:02:21]}  exf4 {[%clk 0:01:59]} 16. Bxf4 {[%clk 0:02:22]}  Nxf4 {[%clk 0:01:52]} 17. gxf4 {[%clk 0:02:23]}  d5 {[%clk 0:01:53]} 18. e5 {[%clk 0:02:20]}  Ne4 {[%clk 0:01:53]} 19. Bxe4 {[%clk 0:02:13]}  dxe4 {[%clk 0:01:54]} 20. Qh5 {[%clk 0:02:01]}  c5 {[%clk 0:01:37]} 21. d5 {[%clk 0:01:57]}  c4 {[%clk 0:01:24]} 22. Rad1 {[%clk 0:01:54]}  Qc5+ {[%clk 0:01:17]} 23. Rd4 {[%clk 0:01:51]}  Rad8 {[%clk 0:01:07]} 24. Re3 {[%clk 0:01:45]}  Bc8 {[%clk 0:00:56]} 25. Rg3 {[%clk 0:01:36]}  Kf8 {[%clk 0:00:46]} 26. Ng4 {[%clk 0:00:53]}  Rxd5 {[%clk 0:00:24]} 27. Nxh6 {[%clk 0:00:54]}  Be6 {[%clk 0:00:25]} 28. Ng4 {[%clk 0:00:08]}  Rxd4 {[%clk 0:00:15]} 29. cxd4 {[%clk 0:00:09]}  Qxd4+ {[%clk 0:00:15]} 30. Ne3 {[%clk 0:00:09]}  g6 {[%clk 0:00:10]} 31. Qg5 {[%clk 0:00:05]}  Qd8 {[%clk 0:00:08]} 32. Qh6+ {[%clk 0:00:05]}  Ke7 {[%clk 0:00:08]} 33. f5 {[%clk 0:00:04]}  gxf5 {[%clk 0:00:08]} 34. Nxf5+ {[%clk 0:00:05]}  Kd7 {[%clk 0:00:07]} 35. Nd6 {[%clk 0:00:03]}  Rg8 {[%clk 0:00:07]} 36. Nxe4 {[%clk 0:00:03]}  Rxg3+ {[%clk 0:00:06]} 37. Nxg3 {[%clk 0:00:03]}  Qa5 {[%clk 0:00:06]} 38. Qe3 {[%clk 0:00:02]}  Qxa2 {[%clk 0:00:06]} 39. Qd4+ {[%clk 0:00:02]}  Kc8 {[%clk 0:00:06]} 40. Ne4 {[%clk 0:00:02]}  Qb1+ {[%clk 0:00:04]} 41. Kg2 {[%clk 0:00:01]}  Qxc2+ {[%clk 0:00:04]} 42. Kg1 {[%clk 0:00:01]}  Qd3 {[%clk 0:00:03]} 43. Qc5+ {[%clk 0:00:00]}  Kb8 {[%clk 0:00:03]} 0-1

[Event "December 5 Early 2023"]
[Site "https://www.chess.com"]
[Date "2023.12.05"]
[Round "3"]
[White "So, Wesley"]
[Black "Samunenkov, Ihor"]
[Result "0-1"]
[Board "8"]
[TimeControl "180+1"]
[WhiteFideId "5202213"]
[BlackFideId "14187086"]
[WhiteElo "3057"]
[BlackElo "2762"]
[WhiteTeam "USA"]
[BlackTeam "UKR"]
[WhiteClock "0:00:22"]
[BlackClock "0:00:44"]

1. b3 {[%clk 0:02:50]}  c5 {[%clk 0:02:55]} 2. Bb2 {[%clk 0:02:51]}  Nc6 {[%clk 0:02:55]} 3. Nf3 {[%clk 0:02:43]}  d6 {[%clk 0:02:53]} 4. g3 {[%clk 0:02:39]}  e5 {[%clk 0:02:53]} 5. Bg2 {[%clk 0:02:36]}  g6 {[%clk 0:02:53]} 6. O-O {[%clk 0:02:35]}  Bg7 {[%clk 0:02:54]} 7. c4 {[%clk 0:02:32]}  Nge7 {[%clk 0:02:53]} 8. Nc3 {[%clk 0:02:29]}  O-O {[%clk 0:02:53]} 9. e3 {[%clk 0:02:25]}  h6 {[%clk 0:02:50]} 10. a3 {[%clk 0:02:18]}  Be6 {[%clk 0:02:46]} 11. d3 {[%clk 0:02:06]}  d5 {[%clk 0:02:34]} 12. cxd5 {[%clk 0:01:59]}  Nxd5 {[%clk 0:02:33]} 13. Rc1 {[%clk 0:02:00]}  b6 {[%clk 0:02:09]} 14. Nxd5 {[%clk 0:01:55]}  Bxd5 {[%clk 0:02:09]} 15. b4 {[%clk 0:01:52]}  e4 {[%clk 0:01:25]} 16. dxe4 {[%clk 0:01:53]}  Bxb2 {[%clk 0:01:25]} 17. exd5 {[%clk 0:01:53]}  Bxc1 {[%clk 0:01:25]} 18. Qxc1 {[%clk 0:01:54]}  Qxd5 {[%clk 0:01:22]} 19. Nd2 {[%clk 0:01:41]}  Qe6 {[%clk 0:01:09]} 20. b5 {[%clk 0:01:21]}  Ne5 {[%clk 0:01:09]} 21. Bxa8 {[%clk 0:01:21]}  Rxa8 {[%clk 0:01:09]} 22. e4 {[%clk 0:00:56]}  Rd8 {[%clk 0:01:05]} 23. f4 {[%clk 0:00:56]}  Qa2 {[%clk 0:00:45]} 24. fxe5 {[%clk 0:00:22]}  Rxd2 {[%clk 0:00:44]} 0-1

[Event "December 5 Early 2023"]
[Site "https://www.chess.com"]
[Date "2023.12.05"]
[Round "3"]
[White "Wagh Suyog"]
[Black "Aronian, Levon"]
[Result "0-1"]
[Board "9"]
[TimeControl "180+1"]
[WhiteFideId "25071688"]
[BlackFideId "13300474"]
[WhiteElo "2762"]
[BlackElo "3056"]
[WhiteTeam "IND"]
[BlackTeam "USA"]
[WhiteClock "0:00:00"]
[BlackClock "0:00:21"]

1. e4 {[%clk 0:02:53]}  c5 {[%clk 0:03:00]} 2. Nf3 {[%clk 0:02:53]}  d6 {[%clk 0:03:00]} 3. Bb5+ {[%clk 0:02:53]}  Nd7 {[%clk 0:02:59]} 4. Ba4 {[%clk 0:02:53]}  Nf6 {[%clk 0:02:52]} 5. O-O {[%clk 0:02:47]}  a6 {[%clk 0:02:48]} 6. c4 {[%clk 0:02:47]}  e6 {[%clk 0:02:44]} 7. Nc3 {[%clk 0:02:47]}  Be7 {[%clk 0:02:44]} 8. d3 {[%clk 0:02:47]}  O-O {[%clk 0:02:43]} 9. Bf4 {[%clk 0:02:46]}  Nh5 {[%clk 0:02:28]} 10. Be3 {[%clk 0:02:43]}  g6 {[%clk 0:02:28]} 11. Rb1 {[%clk 0:02:40]}  Bf6 {[%clk 0:02:20]} 12. Qd2 {[%clk 0:02:36]}  b6 {[%clk 0:02:07]} 13. b4 {[%clk 0:02:27]}  Qc7 {[%clk 0:02:03]} 14. a3 {[%clk 0:02:25]}  Rd8 {[%clk 0:01:46]} 15. Rfc1 {[%clk 0:02:25]}  Ne5 {[%clk 0:01:43]} 16. Bd1 {[%clk 0:02:22]}  Ng7 {[%clk 0:01:27]} 17. h3 {[%clk 0:02:18]}  Bd7 {[%clk 0:01:18]} 18. Nxe5 {[%clk 0:02:15]}  Bxe5 {[%clk 0:01:18]} 19. Ne2 {[%clk 0:02:07]}  Ne8 {[%clk 0:01:14]} 20. Kh1 {[%clk 0:02:03]}  Bc6 {[%clk 0:01:11]} 21. f4 {[%clk 0:01:58]}  Bg7 {[%clk 0:01:11]} 22. Ng3 {[%clk 0:01:59]}  Nf6 {[%clk 0:01:00]} 23. Qf2 {[%clk 0:01:53]}  Rac8 {[%clk 0:00:56]} 24. Bf3 {[%clk 0:01:51]}  Ba8 {[%clk 0:00:56]} 25. Ne2 {[%clk 0:01:47]}  Qe7 {[%clk 0:00:54]} 26. Nc3 {[%clk 0:01:39]}  Nd7 {[%clk 0:00:54]} 27. Na4 {[%clk 0:01:35]}  Bc6 {[%clk 0:00:52]} 28. Nc3 {[%clk 0:01:33]}  Rc7 {[%clk 0:00:49]} 29. Kh2 {[%clk 0:01:31]}  Rdc8 {[%clk 0:00:48]} 30. Ne2 {[%clk 0:01:29]}  b5 {[%clk 0:00:44]} 31. bxc5 {[%clk 0:00:49]}  Nxc5 {[%clk 0:00:44]} 32. Bxc5 {[%clk 0:00:49]}  dxc5 {[%clk 0:00:44]} 33. e5 {[%clk 0:00:49]}  Be8 {[%clk 0:00:44]} 34. Nc3 {[%clk 0:00:45]}  b4 {[%clk 0:00:40]} 35. Ne4 {[%clk 0:00:45]}  a5 {[%clk 0:00:37]} 36. Nd6 {[%clk 0:00:43]}  Rd8 {[%clk 0:00:37]} 37. d4 {[%clk 0:00:41]}  Rxd6 {[%clk 0:00:35]} 38. exd6 {[%clk 0:00:40]}  Qxd6 {[%clk 0:00:36]} 39. dxc5 {[%clk 0:00:40]}  Qxf4+ {[%clk 0:00:36]} 40. g3 {[%clk 0:00:38]}  Qg5 {[%clk 0:00:30]} 41. axb4 {[%clk 0:00:38]}  axb4 {[%clk 0:00:29]} 42. h4 {[%clk 0:00:38]}  Qh6 {[%clk 0:00:24]} 43. Rd1 {[%clk 0:00:37]}  Be5 {[%clk 0:00:22]} 44. Rd8 {[%clk 0:00:32]}  Qxh4+ {[%clk 0:00:22]} 45. Kg2 {[%clk 0:00:33]}  Qxd8 {[%clk 0:00:22]} 46. Rxb4 {[%clk 0:00:18]}  Kg7 {[%clk 0:00:22]} 47. Qe3 {[%clk 0:00:17]}  Qd4 {[%clk 0:00:21]} 48. Qe2 {[%clk 0:00:12]}  Qxc5 {[%clk 0:00:20]} 49. Rb5 {[%clk 0:00:12]}  Bxb5 {[%clk 0:00:19]} 50. cxb5 {[%clk 0:00:12]}  Qc2 {[%clk 0:00:20]} 51. b6 {[%clk 0:00:11]}  Qxe2+ {[%clk 0:00:19]} 52. Bxe2 {[%clk 0:00:11]}  Rb7 {[%clk 0:00:20]} 53. Bf3 {[%clk 0:00:00]}  Rxb6 {[%clk 0:00:21]} 0-1

[Event "December 5 Early 2023"]
[Site "https://www.chess.com"]
[Date "2023.12.05"]
[Round "3"]
[White "Le, Tuan Minh"]
[Black "Sokolovsky, Yahli"]
[Result "1-0"]
[Board "10"]
[TimeControl "180+1"]
[WhiteFideId "12401153"]
[BlackFideId "2820242"]
[WhiteElo "3054"]
[BlackElo "2759"]
[WhiteTeam "VIE"]
[BlackTeam "ISR"]
[WhiteClock "0:00:23"]
[BlackClock "0:00:06"]

1. d4 {[%clk 0:03:00]}  d6 {[%clk 0:03:00]} 2. e4 {[%clk 0:02:59]}  g6 {[%clk 0:03:01]} 3. Nf3 {[%clk 0:02:57]}  Bg7 {[%clk 0:03:01]} 4. Bc4 {[%clk 0:02:57]}  e6 {[%clk 0:03:02]} 5. Bb3 {[%clk 0:02:57]}  Nf6 {[%clk 0:02:56]} 6. Qe2 {[%clk 0:02:55]}  O-O {[%clk 0:02:52]} 7. O-O {[%clk 0:02:54]}  d5 {[%clk 0:02:38]} 8. e5 {[%clk 0:02:47]}  Nfd7 {[%clk 0:02:37]} 9. Bg5 {[%clk 0:02:46]}  Qe8 {[%clk 0:02:36]} 10. Re1 {[%clk 0:02:40]}  c5 {[%clk 0:02:34]} 11. c3 {[%clk 0:02:39]}  b6 {[%clk 0:02:33]} 12. Nbd2 {[%clk 0:02:34]}  Ba6 {[%clk 0:02:32]} 13. Qe3 {[%clk 0:02:33]}  Nc6 {[%clk 0:02:31]} 14. h4 {[%clk 0:02:24]}  Rc8 {[%clk 0:02:21]} 15. Bh6 {[%clk 0:01:51]}  Na5 {[%clk 0:02:20]} 16. h5 {[%clk 0:01:51]}  Bb7 {[%clk 0:02:03]} 17. Ba4 {[%clk 0:01:44]}  Nc4 {[%clk 0:01:44]} 18. Qf4 {[%clk 0:01:40]}  Bc6 {[%clk 0:01:26]} 19. Bxc6 {[%clk 0:01:19]}  Rxc6 {[%clk 0:01:27]} 20. Nxc4 {[%clk 0:01:19]}  dxc4 {[%clk 0:01:27]} 21. Rad1 {[%clk 0:01:17]}  cxd4 {[%clk 0:01:25]} 22. Nxd4 {[%clk 0:01:15]}  Rc5 {[%clk 0:01:22]} 23. Bxg7 {[%clk 0:01:16]}  Kxg7 {[%clk 0:01:22]} 24. h6+ {[%clk 0:01:16]}  Kg8 {[%clk 0:01:22]} 25. Nf3 {[%clk 0:00:47]}  f6 {[%clk 0:01:18]} 26. exf6 {[%clk 0:00:46]}  Rxf6 {[%clk 0:01:15]} 27. Qd6 {[%clk 0:00:46]}  Nf8 {[%clk 0:01:03]} 28. Ne5 {[%clk 0:00:43]}  Rf5 {[%clk 0:00:49]} 29. Ng4 {[%clk 0:00:36]}  Qf7 {[%clk 0:00:39]} 30. f3 {[%clk 0:00:34]}  Rfd5 {[%clk 0:00:34]} 31. Rxd5 {[%clk 0:00:33]}  Rxd5 {[%clk 0:00:35]} 32. Qc6 {[%clk 0:00:23]}  Qf4 {[%clk 0:00:19]} 33. Qb7 {[%clk 0:00:24]}  Rd7 {[%clk 0:00:15]} 34. Qe4 {[%clk 0:00:23]}  Qxe4 {[%clk 0:00:13]} 35. Rxe4 {[%clk 0:00:24]}  Rd2 {[%clk 0:00:13]} 36. Rxc4 {[%clk 0:00:23]}  Nd7 {[%clk 0:00:08]} 37. Rc7 {[%clk 0:00:24]}  a5 {[%clk 0:00:06]} 38. Rxd7 {[%clk 0:00:23]} 1-0

[Event "December 5 Early 2023"]
[Site "https://www.chess.com"]
[Date "2023.12.05"]
[Round "3"]
[White "Gabrielian, Artur"]
[Black "Oparin, Grigoriy"]
[Result "0-1"]
[Board "11"]
[TimeControl "180+1"]
[WhiteFideId "4131002"]
[BlackFideId "24125890"]
[WhiteElo "2736"]
[BlackElo "3053"]
[WhiteTeam "RUS"]
[BlackTeam "USA"]
[WhiteClock "0:00:06"]
[BlackClock "0:01:12"]

1. e4 {[%clk 0:02:58]}  c6 {[%clk 0:03:00]} 2. d4 {[%clk 0:02:58]}  d5 {[%clk 0:03:01]} 3. e5 {[%clk 0:02:58]}  c5 {[%clk 0:03:02]} 4. dxc5 {[%clk 0:02:58]}  e6 {[%clk 0:03:02]} 5. Nf3 {[%clk 0:02:58]}  Bxc5 {[%clk 0:03:02]} 6. a3 {[%clk 0:02:57]}  Ne7 {[%clk 0:03:03]} 7. Bd3 {[%clk 0:02:57]}  Ng6 {[%clk 0:03:03]} 8. b4 {[%clk 0:02:56]}  Be7 {[%clk 0:03:01]} 9. O-O {[%clk 0:02:54]}  a5 {[%clk 0:03:00]} 10. b5 {[%clk 0:02:53]}  Nd7 {[%clk 0:03:00]} 11. Re1 {[%clk 0:02:51]}  a4 {[%clk 0:02:56]} 12. Nbd2 {[%clk 0:02:46]}  O-O {[%clk 0:02:54]} 13. Bb2 {[%clk 0:02:41]}  Nc5 {[%clk 0:02:54]} 14. Nd4 {[%clk 0:02:36]}  Nxd3 {[%clk 0:02:48]} 15. cxd3 {[%clk 0:02:37]}  Bd7 {[%clk 0:02:48]} 16. Rb1 {[%clk 0:02:26]}  Qa5 {[%clk 0:02:46]} 17. g3 {[%clk 0:02:20]}  Bxb5 {[%clk 0:02:37]} 18. N2f3 {[%clk 0:02:21]}  Rfc8 {[%clk 0:02:26]} 19. h4 {[%clk 0:02:19]}  h6 {[%clk 0:02:26]} 20. h5 {[%clk 0:02:10]}  Nf8 {[%clk 0:02:27]} 21. Nh2 {[%clk 0:02:10]}  Ba6 {[%clk 0:01:56]} 22. Ng4 {[%clk 0:02:07]}  Bg5 {[%clk 0:01:50]} 23. Nf3 {[%clk 0:01:53]}  Qd8 {[%clk 0:01:45]} 24. Bc1 {[%clk 0:01:39]}  Bxc1 {[%clk 0:01:42]} 25. Rxc1 {[%clk 0:01:39]}  Rxc1 {[%clk 0:01:42]} 26. Qxc1 {[%clk 0:01:39]}  Bxd3 {[%clk 0:01:43]} 27. Qf4 {[%clk 0:01:17]}  Bf5 {[%clk 0:01:40]} 28. Ne3 {[%clk 0:01:11]}  Be4 {[%clk 0:01:40]} 29. Nd4 {[%clk 0:00:57]}  Rc8 {[%clk 0:01:40]} 30. Nb5 {[%clk 0:00:33]}  Qg5 {[%clk 0:01:32]} 31. Qxg5 {[%clk 0:00:31]}  hxg5 {[%clk 0:01:32]} 32. Nd6 {[%clk 0:00:31]}  Rc3 {[%clk 0:01:29]} 33. h6 {[%clk 0:00:29]}  Bf3 {[%clk 0:01:17]} 34. hxg7 {[%clk 0:00:20]}  Kxg7 {[%clk 0:01:18]} 35. g4 {[%clk 0:00:18]}  Ng6 {[%clk 0:01:16]} 36. Rb1 {[%clk 0:00:18]}  Rb3 {[%clk 0:01:12]} 37. Rc1 {[%clk 0:00:18]}  Nxe5 {[%clk 0:01:12]} 38. Rc7 {[%clk 0:00:15]}  Rxa3 {[%clk 0:01:11]} 39. Rxb7 {[%clk 0:00:11]}  d4 {[%clk 0:01:12]} 40. Nec4 {[%clk 0:00:09]}  Ra1+ {[%clk 0:01:11]} 41. Kh2 {[%clk 0:00:06]}  Bxb7 {[%clk 0:01:12]} 0-1